[Event "*** Titled Tuesday Blitz"]
[Site "Chess.com"]
[Date "2020.02.04"]
[Round "8"]
[White "GadimbayliA"]
[Black "Sergey85Rodchenkov"]
[Result "1-0"]
[WhiteElo "2921"]
[BlackElo "2569"]
[TimeControl "180+2"]
[EndTime "10:54:10 PST"]
[Termination "GadimbayliA won by resignation"]

1. e4 {[%clk 0:03:01.9]} 1... c5 {[%clk 0:03:00.1]} 2. Nf3 {[%clk 0:03:02.5]}
2... e6 {[%clk 0:03:01.6]} 3. d4 {[%clk 0:03:02.9]} 3... cxd4 {[%clk 0:03:03]}
4. Nxd4 {[%clk 0:03:04.8]} 4... a6 {[%clk 0:03:04.6]} 5. Bd3 {[%clk 0:03:05.7]}
5... Qc7 {[%clk 0:03:05.4]} 6. O-O {[%clk 0:03:05.8]} 6... Nf6 {[%clk
0:03:06.9]} 7. Qe2 {[%clk 0:03:07.2]} 7... d6 {[%clk 0:03:07.7]} 8. c4 {[%clk
0:03:08.8]} 8... g6 {[%clk 0:03:08.4]} 9. Nc3 {[%clk 0:03:08.3]} 9... Bg7 {[%clk
0:03:09.2]} 10. Be3 {[%clk 0:03:09.7]} 10... O-O {[%clk 0:03:08.2]} 11. Rac1
{[%clk 0:03:11.3]} 11... Nbd7 {[%clk 0:03:08]} 12. Rfd1 {[%clk 0:03:12.2]} 12...
b6 {[%clk 0:03:06.6]} 13. b4 {[%clk 0:03:13.2]} 13... Bb7 {[%clk 0:03:07]} 14.
f3 {[%clk 0:03:13.6]} 14... Rac8 {[%clk 0:03:02.8]} 15. Nb3 {[%clk 0:02:59.1]}
15... h5 {[%clk 0:02:51.7]} 16. Qf2 {[%clk 0:02:56.5]} 16... Rfe8 {[%clk
0:02:31.9]} 17. Na4 {[%clk 0:02:50.6]} 17... Qb8 {[%clk 0:02:11.9]} 18. Nxb6
{[%clk 0:02:47.6]} 18... Nxb6 {[%clk 0:02:10.8]} 19. Bxb6 {[%clk 0:02:49.5]}
19... d5 {[%clk 0:02:12.2]} 20. exd5 {[%clk 0:02:27.9]} 20... exd5 {[%clk
0:02:08.7]} 21. Bd4 {[%clk 0:02:16.6]} 21... dxc4 {[%clk 0:02:08.6]} 22. Bxc4
{[%clk 0:02:15.2]} 22... Rcd8 {[%clk 0:02:03.7]} 23. Qc2 {[%clk 0:01:36.7]}
23... Bd5 {[%clk 0:01:45.3]} 24. Bxf6 {[%clk 0:01:34.6]} 24... Bxc4 {[%clk
0:01:38.2]} 25. Bxd8 {[%clk 0:01:08.9]} 25... Bxb3 {[%clk 0:01:17.7]} 26. axb3
{[%clk 0:01:10.8]} 1-0

[Event "*** Titled Tuesday Blitz"]
[Site "Chess.com"]
[Date "2020.02.04"]
[Round "8"]
[White "SergioGarciaFuentes"]
[Black "Irishchessman16"]
[Result "0-1"]
[WhiteElo "2164"]
[BlackElo "2247"]
[TimeControl "180+2"]
[EndTime "10:54:39 PST"]
[Termination "Irishchessman16 won by resignation"]

1. Nf3 {[%clk 0:03:01.9]} 1... Nf6 {[%clk 0:02:59.4]} 2. g3 {[%clk 0:03:02.1]}
2... d5 {[%clk 0:02:52.1]} 3. Bg2 {[%clk 0:03:02]} 3... e6 {[%clk 0:02:53.3]} 4.
O-O {[%clk 0:03:00.3]} 4... c5 {[%clk 0:02:49.2]} 5. d4 {[%clk 0:03:00.2]} 5...
cxd4 {[%clk 0:02:48.6]} 6. Nxd4 {[%clk 0:03:01.3]} 6... e5 {[%clk 0:02:50.1]} 7.
Nb3 {[%clk 0:02:52.7]} 7... Nc6 {[%clk 0:02:45.4]} 8. Nc3 {[%clk 0:02:52.9]}
8... Be6 {[%clk 0:02:43.3]} 9. Bg5 {[%clk 0:02:51.5]} 9... d4 {[%clk 0:02:41.4]}
10. Ne4 {[%clk 0:02:40]} 10... Be7 {[%clk 0:02:41]} 11. Nec5 {[%clk 0:02:05.4]}
11... Bc8 {[%clk 0:02:28.1]} 12. f4 {[%clk 0:01:35.2]} 12... Ng4 {[%clk
0:02:19.2]} 13. Bxe7 {[%clk 0:01:24.7]} 13... Qxe7 {[%clk 0:02:19.4]} 14. fxe5
{[%clk 0:01:00.7]} 14... Ne3 {[%clk 0:02:18.5]} 15. Qd3 {[%clk 0:00:59]} 15...
Nxf1 {[%clk 0:02:14.4]} 16. Rxf1 {[%clk 0:00:57]} 16... O-O {[%clk 0:02:10.3]}
17. Bxc6 {[%clk 0:00:51.3]} 17... bxc6 {[%clk 0:02:09.9]} 18. Qxd4 {[%clk
0:00:52.4]} 18... Be6 {[%clk 0:02:05.5]} 19. Qd6 {[%clk 0:00:36.8]} 19... Rfe8
{[%clk 0:01:52.2]} 20. Qxe7 {[%clk 0:00:31.3]} 20... Rxe7 {[%clk 0:01:53.4]} 21.
Nd4 {[%clk 0:00:32.8]} 21... Bd5 {[%clk 0:01:48.5]} 22. e4 {[%clk 0:00:32.4]}
22... Bc4 {[%clk 0:01:42.3]} 23. Rf5 {[%clk 0:00:24.7]} 23... g6 {[%clk
0:01:38]} 24. Nxc6 {[%clk 0:00:25.5]} 24... Rc7 {[%clk 0:01:27.7]} 25. Rf6
{[%clk 0:00:26.4]} 25... Rac8 {[%clk 0:01:28.2]} 0-1

[Event "*** Titled Tuesday Blitz"]
[Site "Chess.com"]
[Date "2020.02.04"]
[Round "8"]
[White "Hydrargyrum_Girl"]
[Black "csati17"]
[Result "0-1"]
[WhiteElo "2184"]
[BlackElo "2534"]
[TimeControl "180+2"]
[EndTime "10:54:52 PST"]
[Termination "csati17 won by resignation"]

1. d4 {[%clk 0:03:01.4]} 1... Nf6 {[%clk 0:03:00.1]} 2. Nc3 {[%clk 0:03:02.6]}
2... e6 {[%clk 0:02:59.2]} 3. e4 {[%clk 0:03:03.2]} 3... d5 {[%clk 0:03:00.2]}
4. Bg5 {[%clk 0:03:03.7]} 4... dxe4 {[%clk 0:03:01.3]} 5. Nxe4 {[%clk
0:03:04.4]} 5... Be7 {[%clk 0:03:02.5]} 6. Bxf6 {[%clk 0:03:05.7]} 6... gxf6
{[%clk 0:03:04.4]} 7. Nf3 {[%clk 0:03:05.3]} 7... f5 {[%clk 0:03:06.3]} 8. Nc3
{[%clk 0:03:06.2]} 8... a6 {[%clk 0:03:06.8]} 9. g3 {[%clk 0:03:06.6]} 9... b5
{[%clk 0:03:07.3]} 10. Bg2 {[%clk 0:03:00.1]} 10... Bb7 {[%clk 0:03:04.2]} 11.
O-O {[%clk 0:03:00.6]} 11... O-O {[%clk 0:02:48.8]} 12. Ne5 {[%clk 0:02:24.5]}
12... Bxg2 {[%clk 0:02:44.9]} 13. Kxg2 {[%clk 0:02:23.6]} 13... Qd6 {[%clk
0:02:20.2]} 14. Qd3 {[%clk 0:02:06.7]} 14... Nd7 {[%clk 0:02:19.7]} 15. Nf3
{[%clk 0:01:58.7]} 15... Nb6 {[%clk 0:02:12.6]} 16. Rad1 {[%clk 0:01:56.7]}
16... Rad8 {[%clk 0:02:10]} 17. b3 {[%clk 0:01:56.6]} 17... c5 {[%clk
0:02:07.1]} 18. Ne2 {[%clk 0:01:50.5]} 18... c4 {[%clk 0:02:05.3]} 19. Qe3
{[%clk 0:01:47.2]} 19... Nd5 {[%clk 0:01:59]} 20. Qh6 {[%clk 0:01:48.2]} 20...
Bf6 {[%clk 0:01:59.6]} 21. Neg1 {[%clk 0:01:20.2]} 21... Bg7 {[%clk 0:01:59.8]}
22. Qh4 {[%clk 0:01:18.1]} 22... Nc3 {[%clk 0:01:54.6]} 23. Rd2 {[%clk
0:01:10.9]} 23... Ne4 {[%clk 0:01:53.3]} 24. Rdd1 {[%clk 0:01:08.4]} 24... cxb3
{[%clk 0:01:53.3]} 25. cxb3 {[%clk 0:01:04]} 25... Rc8 {[%clk 0:01:50.8]} 26.
Nh3 {[%clk 0:00:58.3]} 26... h6 {[%clk 0:01:46.2]} 27. Rc1 {[%clk 0:00:43]}
27... Qa3 {[%clk 0:01:44.5]} 28. Nf4 {[%clk 0:00:27.7]} 28... Rxc1 {[%clk
0:01:40.6]} 29. Nh5 {[%clk 0:00:22.7]} 29... Rxf1 {[%clk 0:01:38]} 30. Kxf1
{[%clk 0:00:22.7]} 30... Qc1+ {[%clk 0:01:37.7]} 31. Kg2 {[%clk 0:00:23.9]}
31... Qc2 {[%clk 0:01:38.9]} 0-1

[Event "*** Titled Tuesday Blitz"]
[Site "Chess.com"]
[Date "2020.02.04"]
[Round "8"]
[White "MaxLeto"]
[Black "WeAintSurePal"]
[Result "0-1"]
[WhiteElo "2330"]
[BlackElo "2421"]
[TimeControl "180+2"]
[EndTime "10:55:03 PST"]
[Termination "WeAintSurePal won by resignation"]

1. e4 {[%clk 0:02:52.6]} 1... c6 {[%clk 0:02:59.4]} 2. Nc3 {[%clk 0:02:52.1]}
2... d5 {[%clk 0:03:00.1]} 3. Nf3 {[%clk 0:02:54]} 3... dxe4 {[%clk 0:02:56.4]}
4. Nxe4 {[%clk 0:02:54.5]} 4... Nf6 {[%clk 0:02:57.9]} 5. Nxf6+ {[%clk 0:02:53]}
5... exf6 {[%clk 0:02:59.8]} 6. d4 {[%clk 0:02:49.3]} 6... Bd6 {[%clk
0:02:58.8]} 7. Be2 {[%clk 0:02:40.8]} 7... O-O {[%clk 0:02:58.4]} 8. O-O {[%clk
0:02:41.2]} 8... Re8 {[%clk 0:02:59.8]} 9. Re1 {[%clk 0:02:35]} 9... Nd7 {[%clk
0:02:58.3]} 10. Be3 {[%clk 0:02:32.8]} 10... Nf8 {[%clk 0:02:59.2]} 11. c4
{[%clk 0:02:22.9]} 11... Bg4 {[%clk 0:02:53.1]} 12. h3 {[%clk 0:02:23.1]} 12...
Bh5 {[%clk 0:02:49.8]} 13. a3 {[%clk 0:02:21.5]} 13... Bc7 {[%clk 0:02:44.7]}
14. d5 {[%clk 0:02:06.9]} 14... Qd7 {[%clk 0:02:43.7]} 15. dxc6 {[%clk
0:01:25.1]} 15... Qxc6 {[%clk 0:02:41.7]} 16. Qd5 {[%clk 0:01:26.6]} 16... Qxd5
{[%clk 0:02:33.6]} 17. cxd5 {[%clk 0:01:28.5]} 17... Rad8 {[%clk 0:02:33.7]} 18.
Red1 {[%clk 0:01:24.7]} 18... Bb6 {[%clk 0:02:29.7]} 19. Bxb6 {[%clk 0:01:19.5]}
19... axb6 {[%clk 0:02:31.6]} 20. Bb5 {[%clk 0:01:19.8]} 20... Bxf3 {[%clk
0:02:30.3]} 21. gxf3 {[%clk 0:01:08]} 21... Re5 {[%clk 0:02:28.6]} 22. Bc4
{[%clk 0:01:06.5]} 22... Ng6 {[%clk 0:02:28.2]} 23. Rd4 {[%clk 0:01:04.5]} 23...
Rf5 {[%clk 0:02:23.4]} 24. Kg2 {[%clk 0:00:41.4]} 24... Nf4+ {[%clk 0:02:22.3]}
25. Kg3 {[%clk 0:00:41.9]} 25... Nh5+ {[%clk 0:02:10.4]} 26. Kg2 {[%clk
0:00:37.6]} 26... Rg5+ {[%clk 0:02:10.5]} 27. Kh2 {[%clk 0:00:37.5]} 27... Rf5
{[%clk 0:02:10.5]} 28. Kg2 {[%clk 0:00:34.4]} 28... g5 {[%clk 0:02:11.3]} 29.
Rad1 {[%clk 0:00:33]} 29... Nf4+ {[%clk 0:02:11.5]} 30. Kg3 {[%clk 0:00:34.4]}
30... h5 {[%clk 0:02:11.7]} 31. h4 {[%clk 0:00:25.9]} 31... Rd6 {[%clk
0:02:11.6]} 32. Re4 {[%clk 0:00:09.3]} 32... Kg7 {[%clk 0:02:08.5]} 33. Re7
{[%clk 0:00:08.7]} 33... gxh4+ {[%clk 0:02:01.3]} 34. Kxh4 {[%clk 0:00:09.1]}
34... Ng6+ {[%clk 0:02:01.7]} 0-1

[Event "*** Titled Tuesday Blitz"]
[Site "Chess.com"]
[Date "2020.02.04"]
[Round "8"]
[White "AleksanderHnydiuk"]
[Black "Coiote53"]
[Result "1-0"]
[WhiteElo "2547"]
[BlackElo "2604"]
[TimeControl "180+2"]
[EndTime "10:55:11 PST"]
[Termination "AleksanderHnydiuk won by resignation"]

1. Nf3 {[%clk 0:03:01.9]} 1... d5 {[%clk 0:02:38.5]} 2. d4 {[%clk 0:03:02.4]}
2... Nf6 {[%clk 0:02:36.2]} 3. c4 {[%clk 0:03:03.3]} 3... dxc4 {[%clk
0:02:36.9]} 4. e3 {[%clk 0:03:03.7]} 4... b5 {[%clk 0:02:37.3]} 5. a4 {[%clk
0:03:03.7]} 5... b4 {[%clk 0:02:38.6]} 6. Bxc4 {[%clk 0:03:03.7]} 6... e6 {[%clk
0:02:39.5]} 7. O-O {[%clk 0:03:04.5]} 7... Be7 {[%clk 0:02:41]} 8. Nbd2 {[%clk
0:02:48.8]} 8... Bb7 {[%clk 0:02:40.7]} 9. Re1 {[%clk 0:02:48.2]} 9... Nbd7
{[%clk 0:02:37.5]} 10. e4 {[%clk 0:02:49]} 10... O-O {[%clk 0:02:36.9]} 11. e5
{[%clk 0:02:45.8]} 11... Nd5 {[%clk 0:02:35.8]} 12. Ne4 {[%clk 0:02:47.1]} 12...
c5 {[%clk 0:02:35.3]} 13. Bg5 {[%clk 0:02:45.4]} 13... cxd4 {[%clk 0:02:34.8]}
14. Qxd4 {[%clk 0:02:25.7]} 14... Bxg5 {[%clk 0:02:31.2]} 15. Nfxg5 {[%clk
0:02:19.6]} 15... Qb6 {[%clk 0:02:23.6]} 16. Qd3 {[%clk 0:02:13.6]} 16... a5
{[%clk 0:02:23.1]} 17. Nd6 {[%clk 0:01:49.6]} 17... g6 {[%clk 0:02:13.8]} 18.
Qh3 {[%clk 0:01:49.1]} 18... h5 {[%clk 0:02:08.7]} 19. Ngxf7 {[%clk 0:01:28.4]}
19... Nxe5 {[%clk 0:01:45.8]} 20. Rxe5 {[%clk 0:01:13.8]} 20... Rxf7 {[%clk
0:01:45.5]} 21. Qxe6 {[%clk 0:01:09.5]} 21... Qxf2+ {[%clk 0:01:45.1]} 22. Kh1
{[%clk 0:01:09.6]} 22... Rf8 {[%clk 0:00:13.8]} 23. Bxd5 {[%clk 0:01:09.4]}
23... Qxb2 {[%clk 0:00:14.9]} 24. Qxg6+ {[%clk 0:01:00.9]} 24... Kh8 {[%clk
0:00:15.3]} 25. Rxh5+ {[%clk 0:01:01.8]} 1-0

[Event "*** Titled Tuesday Blitz"]
[Site "Chess.com"]
[Date "2020.02.04"]
[Round "8"]
[White "Ariadna_Atreides"]
[Black "SHIVACalypso"]
[Result "0-1"]
[WhiteElo "2052"]
[BlackElo "2214"]
[TimeControl "180+2"]
[EndTime "10:55:11 PST"]
[Termination "SHIVACalypso won by resignation"]

1. d4 {[%clk 0:03:00]} 1... Nf6 {[%clk 0:02:49.2]} 2. Nf3 {[%clk 0:02:59.9]}
2... g6 {[%clk 0:02:48.4]} 3. c4 {[%clk 0:02:59]} 3... Bg7 {[%clk 0:02:46.6]} 4.
Nc3 {[%clk 0:02:59.1]} 4... O-O {[%clk 0:02:45.5]} 5. e4 {[%clk 0:02:59.9]} 5...
d6 {[%clk 0:02:46.8]} 6. Be2 {[%clk 0:02:59.2]} 6... Nbd7 {[%clk 0:02:48.1]} 7.
O-O {[%clk 0:02:58.6]} 7... e5 {[%clk 0:02:48.9]} 8. d5 {[%clk 0:02:53.8]} 8...
Nc5 {[%clk 0:02:46.5]} 9. Bg5 {[%clk 0:02:52.7]} 9... a5 {[%clk 0:02:44.9]} 10.
Nd2 {[%clk 0:02:52.9]} 10... h6 {[%clk 0:02:43.4]} 11. Be3 {[%clk 0:02:53.4]}
11... Ne8 {[%clk 0:02:42.3]} 12. a3 {[%clk 0:02:44.9]} 12... f5 {[%clk
0:02:37.3]} 13. b4 {[%clk 0:02:27.9]} 13... axb4 {[%clk 0:02:33.3]} 14. axb4
{[%clk 0:02:27.5]} 14... Rxa1 {[%clk 0:02:35.2]} 15. Qxa1 {[%clk 0:02:27.6]}
15... Na6 {[%clk 0:02:30.7]} 16. b5 {[%clk 0:02:21.5]} 16... Nc5 {[%clk
0:02:30.3]} 17. f3 {[%clk 0:02:13.4]} 17... b6 {[%clk 0:02:23.2]} 18. Na4 {[%clk
0:02:07.8]} 18... f4 {[%clk 0:02:21.6]} 19. Bf2 {[%clk 0:02:05.8]} 19... g5
{[%clk 0:02:20.6]} 20. Nxc5 {[%clk 0:02:05.2]} 20... dxc5 {[%clk 0:02:21.9]} 21.
Nb3 {[%clk 0:01:51]} 21... Nd6 {[%clk 0:02:21.4]} 22. Qb1 {[%clk 0:01:38.3]}
22... h5 {[%clk 0:01:49.5]} 23. Qd3 {[%clk 0:00:51.3]} 23... g4 {[%clk
0:01:48.8]} 24. Ra1 {[%clk 0:00:49.7]} 24... Qg5 {[%clk 0:01:45]} 25. Ra8 {[%clk
0:00:43]} 25... g3 {[%clk 0:01:44.9]} 26. Be1 {[%clk 0:00:34.9]} 26... Qh4
{[%clk 0:01:39.3]} 27. h3 {[%clk 0:00:21.8]} 27... Bxh3 {[%clk 0:01:39]} 28.
Rxf8+ {[%clk 0:00:21.8]} 28... Bxf8 {[%clk 0:01:40.9]} 29. Nd2 {[%clk
0:00:14.4]} 29... Bxg2 {[%clk 0:01:39.3]} 0-1

[Event "*** Titled Tuesday Blitz"]
[Site "Chess.com"]
[Date "2020.02.04"]
[Round "8"]
[White "Shield12"]
[Black "Anton_Demchenko"]
[Result "0-1"]
[WhiteElo "2890"]
[BlackElo "2969"]
[TimeControl "180+2"]
[EndTime "10:55:22 PST"]
[Termination "Anton_Demchenko won by resignation"]

1. e4 {[%clk 0:03:01.9]} 1... e5 {[%clk 0:02:59.2]} 2. Nf3 {[%clk 0:03:03]} 2...
Nc6 {[%clk 0:03:00.6]} 3. Bc4 {[%clk 0:03:04.2]} 3... Nf6 {[%clk 0:03:01.2]} 4.
d3 {[%clk 0:03:05.3]} 4... Be7 {[%clk 0:03:02.2]} 5. O-O {[%clk 0:03:05.6]} 5...
O-O {[%clk 0:03:03.4]} 6. Re1 {[%clk 0:03:07.2]} 6... d6 {[%clk 0:03:04.8]} 7.
a4 {[%clk 0:03:06.7]} 7... Kh8 {[%clk 0:03:04.1]} 8. a5 {[%clk 0:03:05.7]} 8...
a6 {[%clk 0:03:05.1]} 9. c3 {[%clk 0:03:04.7]} 9... Ng8 {[%clk 0:03:03.4]} 10.
d4 {[%clk 0:03:04.3]} 10... Bg4 {[%clk 0:03:01.9]} 11. d5 {[%clk 0:02:33.8]}
11... Nb8 {[%clk 0:03:00.9]} 12. h3 {[%clk 0:02:34.6]} 12... Bxf3 {[%clk
0:02:51.4]} 13. Qxf3 {[%clk 0:02:36.5]} 13... Bg5 {[%clk 0:02:53.1]} 14. Nd2
{[%clk 0:02:36]} 14... g6 {[%clk 0:02:50.4]} 15. Bd3 {[%clk 0:02:35.3]} 15...
Nd7 {[%clk 0:02:50.8]} 16. g3 {[%clk 0:02:32.4]} 16... h5 {[%clk 0:02:45.1]} 17.
h4 {[%clk 0:02:31.4]} 17... Bh6 {[%clk 0:02:45.7]} 18. b4 {[%clk 0:02:30]} 18...
Ngf6 {[%clk 0:02:30.2]} 19. Nc4 {[%clk 0:02:25]} 19... Bxc1 {[%clk 0:02:30.5]}
20. Raxc1 {[%clk 0:02:26.9]} 20... Ng4 {[%clk 0:02:28.5]} 21. Qd1 {[%clk
0:02:08.7]} 21... f5 {[%clk 0:02:16]} 22. exf5 {[%clk 0:02:05.9]} 22... gxf5
{[%clk 0:02:17.4]} 23. f3 {[%clk 0:02:05]} 23... Nh6 {[%clk 0:02:14]} 24. f4
{[%clk 0:01:46]} 24... Ng4 {[%clk 0:01:50.6]} 25. Ne3 {[%clk 0:01:23.7]} 25...
exf4 {[%clk 0:01:44.3]} 26. Nxf5 {[%clk 0:01:22.9]} 26... Nde5 {[%clk
0:01:20.2]} 27. gxf4 {[%clk 0:01:19.8]} 27... Rxf5 {[%clk 0:01:20.7]} 28. Bxf5
{[%clk 0:01:18.3]} 28... Qxh4 {[%clk 0:01:20.5]} 29. Rc2 {[%clk 0:01:19]} 29...
Rg8 {[%clk 0:00:28.6]} 30. Rg2 {[%clk 0:01:17.1]} 30... Nf3+ {[%clk 0:00:29.1]}
31. Kf1 {[%clk 0:01:12]} 31... Qh1+ {[%clk 0:00:27.6]} 32. Ke2 {[%clk
0:01:12.3]} 32... Qxg2+ {[%clk 0:00:28.8]} 0-1

[Event "*** Titled Tuesday Blitz"]
[Site "Chess.com"]
[Date "2020.02.04"]
[Round "8"]
[White "RaunakSadhwani2005"]
[Black "petrpalachev"]
[Result "0-1"]
[WhiteElo "2744"]
[BlackElo "2679"]
[TimeControl "180+2"]
[EndTime "10:55:32 PST"]
[Termination "petrpalachev won by resignation"]

1. c4 {[%clk 0:03:01.5]} 1... e6 {[%clk 0:03:00.8]} 2. Nf3 {[%clk 0:03:00.8]}
2... d5 {[%clk 0:03:02.7]} 3. d4 {[%clk 0:03:01.4]} 3... Nf6 {[%clk 0:03:03.7]}
4. g3 {[%clk 0:03:02.7]} 4... dxc4 {[%clk 0:03:04.5]} 5. Bg2 {[%clk 0:03:01.2]}
5... a6 {[%clk 0:03:06.4]} 6. O-O {[%clk 0:02:47.9]} 6... Nc6 {[%clk 0:03:07.1]}
7. e3 {[%clk 0:02:46]} 7... Bd7 {[%clk 0:03:08]} 8. Qe2 {[%clk 0:02:41.3]} 8...
Bd6 {[%clk 0:03:08.6]} 9. Qxc4 {[%clk 0:02:41.5]} 9... O-O {[%clk 0:03:09.3]}
10. Nc3 {[%clk 0:02:41.6]} 10... b5 {[%clk 0:03:08.7]} 11. Qe2 {[%clk
0:02:41.8]} 11... Rb8 {[%clk 0:03:07.4]} 12. e4 {[%clk 0:02:39.5]} 12... b4
{[%clk 0:02:37.7]} 13. Nb1 {[%clk 0:02:40.3]} 13... e5 {[%clk 0:02:37.3]} 14. d5
{[%clk 0:02:29.7]} 14... Nd4 {[%clk 0:02:38.2]} 15. Nxd4 {[%clk 0:02:30.1]}
15... exd4 {[%clk 0:02:40.1]} 16. Rd1 {[%clk 0:02:21]} 16... Bb5 {[%clk
0:02:37.5]} 17. Qe1 {[%clk 0:02:18.2]} 17... Re8 {[%clk 0:02:36.6]} 18. Bg5
{[%clk 0:02:06]} 18... h6 {[%clk 0:02:35.8]} 19. Bxf6 {[%clk 0:02:07.3]} 19...
Qxf6 {[%clk 0:02:37.7]} 20. f4 {[%clk 0:02:08.8]} 20... d3 {[%clk 0:02:23.5]}
21. Qf2 {[%clk 0:01:54.2]} 21... Qe7 {[%clk 0:02:24.4]} 22. Rc1 {[%clk
0:01:49.8]} 22... f6 {[%clk 0:02:19.8]} 23. Nd2 {[%clk 0:01:48.9]} 23... g5
{[%clk 0:02:20.9]} 24. e5 {[%clk 0:01:35.3]} 24... fxe5 {[%clk 0:02:11.8]} 25.
f5 {[%clk 0:01:36.8]} 25... Qf7 {[%clk 0:02:13.3]} 26. Ne4 {[%clk 0:01:34.3]}
26... Bf8 {[%clk 0:02:14.6]} 27. a4 {[%clk 0:01:21]} 27... bxa3 {[%clk
0:02:14.8]} 28. bxa3 {[%clk 0:01:22.9]} 28... Rb6 {[%clk 0:02:16.4]} 29. a4
{[%clk 0:01:20.2]} 29... Bd7 {[%clk 0:02:17.6]} 30. Rxc7 {[%clk 0:01:13.2]}
30... Reb8 {[%clk 0:02:18.1]} 31. Rf1 {[%clk 0:00:59]} 31... Rb2 {[%clk
0:02:17.5]} 32. Qa7 {[%clk 0:00:54.5]} 32... Rxg2+ {[%clk 0:02:10]} 33. Kxg2
{[%clk 0:00:52.4]} 33... Qxd5 {[%clk 0:02:11.9]} 34. Rxd7 {[%clk 0:00:36.2]}
34... Qxe4+ {[%clk 0:02:12.4]} 35. Kh3 {[%clk 0:00:29.6]} 35... Rb2 {[%clk
0:02:13.5]} 36. Rf2 {[%clk 0:00:21.8]} 36... Rxf2 {[%clk 0:02:14.6]} 37. Qxf2
{[%clk 0:00:23.7]} 37... Qe2 {[%clk 0:02:16.5]} 38. Kg2 {[%clk 0:00:24.9]} 38...
Bc5 {[%clk 0:02:07.1]} 39. Rd8+ {[%clk 0:00:14.5]} 39... Kf7 {[%clk 0:02:07.8]}
40. Rd7+ {[%clk 0:00:15.7]} 40... Kf8 {[%clk 0:02:08.6]} 41. Rd8+ {[%clk
0:00:08]} 41... Ke7 {[%clk 0:02:09.7]} 0-1

[Event "*** Titled Tuesday Blitz"]
[Site "Chess.com"]
[Date "2020.02.04"]
[Round "8"]
[White "VladDobrov"]
[Black "Rodchenkov_Vitalij"]
[Result "1-0"]
[WhiteElo "2906"]
[BlackElo "2602"]
[TimeControl "180+2"]
[EndTime "10:55:34 PST"]
[Termination "VladDobrov won by resignation"]

1. e4 {[%clk 0:02:56.8]} 1... e6 {[%clk 0:02:59.1]} 2. d4 {[%clk 0:02:55.9]}
2... d5 {[%clk 0:02:59.6]} 3. Nc3 {[%clk 0:02:52.7]} 3... Bb4 {[%clk 0:02:58]}
4. e5 {[%clk 0:02:42.5]} 4... b6 {[%clk 0:02:56]} 5. Qg4 {[%clk 0:02:41.1]} 5...
Bf8 {[%clk 0:02:55.8]} 6. f4 {[%clk 0:02:36.8]} 6... Qd7 {[%clk 0:02:52.8]} 7.
Nf3 {[%clk 0:02:37.1]} 7... Ba6 {[%clk 0:02:52.5]} 8. Bxa6 {[%clk 0:02:36.1]}
8... Nxa6 {[%clk 0:02:53.1]} 9. O-O {[%clk 0:02:38]} 9... Ne7 {[%clk 0:02:51.5]}
10. a3 {[%clk 0:02:30]} 10... c5 {[%clk 0:02:49.3]} 11. Be3 {[%clk 0:02:28.3]}
11... Nf5 {[%clk 0:02:48.7]} 12. Bf2 {[%clk 0:02:28.6]} 12... Rc8 {[%clk
0:02:47.7]} 13. Rad1 {[%clk 0:02:24.9]} 13... Be7 {[%clk 0:02:22.7]} 14. Qh3
{[%clk 0:02:24.6]} 14... O-O {[%clk 0:02:15.2]} 15. dxc5 {[%clk 0:02:21.4]}
15... Bxc5 {[%clk 0:02:09.2]} 16. g4 {[%clk 0:02:04.5]} 16... Ne3 {[%clk
0:02:08.3]} 17. Ng5 {[%clk 0:02:01.9]} 17... h6 {[%clk 0:02:07.1]} 18. Bxe3
{[%clk 0:02:01.2]} 18... hxg5 {[%clk 0:01:58.2]} 19. f5 {[%clk 0:01:37.3]} 19...
Qc7 {[%clk 0:01:48.7]} 20. Rfe1 {[%clk 0:01:31.3]} 20... Rfd8 {[%clk 0:01:41.3]}
21. Nb5 {[%clk 0:01:22]} 21... Qd7 {[%clk 0:01:31.8]} 22. Nd4 {[%clk 0:01:19.3]}
22... Bxd4 {[%clk 0:01:31.9]} 23. Rxd4 {[%clk 0:01:17]} 23... Rxc2 {[%clk
0:01:31.1]} 24. Bxg5 {[%clk 0:01:16.8]} 24... Nc7 {[%clk 0:01:06]} 25. f6 {[%clk
0:01:05.9]} 25... Ne8 {[%clk 0:01:06.3]} 26. fxg7 {[%clk 0:01:04]} 26... Nxg7
{[%clk 0:01:05.7]} 27. Bf6 {[%clk 0:01:05.1]} 27... Qe8 {[%clk 0:00:56.6]} 28.
Qh6 {[%clk 0:01:01.1]} 28... Qf8 {[%clk 0:00:57.5]} 29. g5 {[%clk 0:00:59.7]}
29... Rc4 {[%clk 0:00:57.7]} 30. Rd3 {[%clk 0:00:55.6]} 30... Rg4+ {[%clk
0:00:43.3]} 31. Kh1 {[%clk 0:00:54.1]} 1-0